bitfinex-derivatives/quotes_SOLF0:USTF0_20260220
["timestamp","ask_amount","ask_price","bid_price","bid_amount"]
[1771603581032,24.18753967,84.619,84.561,0.08468455]
[1771603581339,24.18753967,84.619,84.54,9.61610213]
[1771603581538,24.18753967,84.619,84.582,0.08003696]
[1771603581734,10.6373,84.625,84.582,0.08003696]
[1771603581941,24.21670649,84.639,84.582,0.08003696]
[1771603582333,24.21670649,84.639,84.566,25.01139393]
[1771603582632,24.21670649,84.639,84.602,0.07868873]
[1771603584735,10.6358,84.637,84.602,0.07868873]
[1771603585041,35.49159602,84.637,84.602,0.07868873]
[1771603585241,24.85579602,84.636,84.602,0.07868873]
[1771603585634,24.96167588,84.628,84.566,25.01139393]
[1771603586236,10.6373,84.625,84.566,25.01139393]
[1771603587036,0.07625103,84.604,84.566,25.01139393]
[1771603587339,0.07625103,84.604,84.55,9.61610213]
[1771603587733,0.07625103,84.604,84.551,25.01139393]
[1771603587938,24.92691726,84.648,84.571,25.01139393]
[1771603588433,9.61610213,84.66,84.571,25.01139393]
[1771603588434,25.01508616,84.643,84.571,25.01139393]
[1771603588635,25.01508616,84.643,84.601,0.07766431]
[1771603589532,25.4653077,84.625,84.551,25.01139393]
[1771603590032,10.6404,84.6,84.535,10.6486]
[1771603590236,25.46540557,84.6,84.535,10.6486]
[1771603590538,9.61610213,84.63,84.52,71.61610213]
[1771603590539,25.46540557,84.619,84.555,10.646]
[1771603590937,25.46540557,84.619,84.555,35.65739393]
[1771603591144,10.6362,84.634,84.562,25.01139393]
[1771603591437,25.43931064,84.642,84.579,0.08122749]
[1771603592042,25.43931064,84.642,84.562,25.01139393]
[1771603592243,10.6373,84.625,84.564,10.6448]
[1771603592544,0.08137564,84.619,84.562,25.01139393]
[1771603593140,10.6373,84.625,84.562,35.65649393]
[1771603593539,10.6385,84.616,84.562,25.01139393]
[1771603593738,25.49754325,84.615,84.541,25.01139393]
[1771603594040,0.07819317,84.602,84.541,25.01139393]
[1771603594439,0.07819317,84.602,84.553,10.6463]
[1771603594641,25.49754325,84.615,84.553,10.6463]
[1771603595041,0.09031592,84.586,84.553,10.6463]
[1771603595242,0.09031592,84.586,84.541,25.01139393]
[1771603595944,25.49754325,84.615,84.541,25.01139393]
[1771603596144,25.598517,84.629,84.556,25.01139393]
[1771603596545,10.6378,84.621,84.556,25.01139393]
[1771603596746,25.598517,84.649,84.561,25.01139393]
[1771603597341,10.6386,84.614,84.561,25.01139393]
[1771603598553,10.6386,84.614,84.544,12.10324908]
[1771603598554,10.6399,84.604,84.544,12.10324908]
[1771603598751,10.6399,84.604,84.545,25.5470517]
[1771603598952,0.07465093,84.596,84.545,25.5470517]
[1771603599557,25.5926736,84.619,84.545,25.5470517]
[1771603599852,25.61795348,84.638,84.545,25.5470517]
[1771603600242,25.61795348,84.638,84.574,0.09019596]
[1771603600646,10.6386,84.614,84.574,0.09019596]
[1771603600854,9.61610213,84.63,84.567,25.5470517]
[1771603601057,25.80408024,84.629,84.567,25.5470517]
[1771603601252,25.80408024,84.629,84.586,0.08536707]
[1771603601648,25.80408024,84.649,84.586,0.08536707]
[1771603602052,25.80408024,84.649,84.567,25.5470517]
[1771603602556,0.08519042,84.616,84.567,25.5470517]
[1771603603257,10.6386,84.614,84.567,25.5470517]
[1771603604256,0.0799487,84.599,84.567,25.5470517]
[1771603604453,10.6377,84.622,84.569,25.5470517]
[1771603604656,25.80408024,84.654,84.571,25.5470517]
[1771603604861,25.80408024,84.654,84.57,9.61610213]
[1771603604862,25.80408024,84.654,84.576,25.5470517]
[1771603605055,10.6362,84.634,84.588,25.5470517]
[1771603605653,10.635,84.643,84.591,36.1885517]
[1771603605959,10.635,84.643,84.604,25.5470517]
[1771603606160,25.80408024,84.675,84.604,25.5470517]
[1771603606762,10.6333,84.657,84.611,25.5470517]
[1771603607060,25.80408024,84.675,84.631,0.08748686]
[1771603607362,10.6323,84.665,84.631,0.08748686]
[1771603608254,10.6332,84.658,84.631,0.08748686]
[1771603609453,25.80408024,84.675,84.631,0.08748686]
[1771603609663,25.80408024,84.675,84.611,25.5470517]
[1771603609859,0.08154839,84.653,84.611,25.5470517]
[1771603610458,10.6324,84.664,84.611,25.5470517]
[1771603611359,10.6308,84.677,84.611,25.5470517]
[1771603611766,25.80408024,84.719,84.625,25.5470517]
[1771603612066,25.80408024,84.719,84.641,25.5470517]
[1771603612358,10.6294,84.688,84.641,25.5470517]
[1771603612560,25.80408024,84.699,84.621,25.5470517]
[1771603612959,25.80408024,84.699,84.633,25.5470517]
[1771603613354,25.80408024,84.717,84.64,9.61610213]
[1771603613554,10.6263,84.713,84.643,25.5470517]
[1771603614264,10.6277,84.702,84.643,25.5470517]
[1771603614658,25.80408024,84.717,84.67,0.07946931]
[1771603614860,25.80408024,84.793,84.671,25.5470517]
[1771603615061,25.80408024,84.793,84.67,0.07946931]
[1771603615062,25.80408024,84.779,84.701,25.5470517]
[1771603615267,25.80408024,84.779,84.703,25.5470517]
[1771603615566,25.80408024,84.759,84.671,25.5470517]
[1771603615770,25.80408024,84.739,84.671,25.5470517]
[1771603616268,25.77387072,84.739,84.671,25.5470517]
[1771603616562,25.77387072,84.719,84.652,25.5470517]
[1771603617160,0.07800148,84.694,84.652,25.5470517]
[1771603617361,25.80408024,84.739,84.664,25.5470517]
[1771603617558,9.61610213,84.76,84.671,25.5470517]
[1771603617763,35.42018237,84.76,84.671,25.5470517]
[1771603617959,25.80408024,84.759,84.671,25.5470517]
[1771603618463,177.14216109,84.822,84.671,25.5470517]
[1771603618464,25.80408024,84.739,84.671,25.5470517]
[1771603619056,165.0776,84.826,84.671,25.5470517]
[1771603619057,25.80408024,84.759,84.671,25.5470517]
[1771603619765,25.80408024,84.759,84.689,10.6291]
[1771603619960,165.1015,84.814,84.671,25.5470517]
[1771603619961,25.80408024,84.739,84.671,25.5470517]
[1771603620360,0.08730824,84.723,84.671,25.5470517]
[1771603620565,25.80408024,84.758,84.689,25.5470517]
[1771603620760,25.80408024,84.758,84.697,0.07740289]
[1771603620965,25.80408024,84.744,84.697,0.07740289]
[1771603621164,25.80408024,84.744,84.672,10.6313]
[1771603621165,25.80408024,84.739,84.672,10.6313]
[1771603621361,9.61610213,84.78,84.62,165.4782]
[1771603621362,25.80408024,84.719,84.641,25.5470517]
[1771603621564,25.80408024,84.701,84.641,25.5470517]
[1771603621869,21.2366,84.777,84.672,0.08227389]
[1771603621870,25.80408024,84.721,84.672,0.08227389]
[1771603622361,25.80408024,84.721,84.641,25.5470517]
[1771603622555,25.80408024,84.714,84.641,25.5470517]
[1771603622756,25.80408024,84.714,84.688,0.08039678]
[1771603623358,25.80408024,84.714,84.64,9.61610213]
[1771603623567,25.80408024,84.714,84.638,25.5470517]
[1771603623766,25.80408024,84.714,84.62,9.61610213]
[1771603623767,25.80408024,84.709,84.62,35.16315383]
[1771603623974,25.80408024,84.709,84.626,36.1841517]
[1771603624167,0.08091558,84.684,84.627,25.5470517]
[1771603624765,25.80408024,84.684,84.627,25.5470517]
[1771603625172,0.07813348,84.664,84.627,25.5470517]
[1771603625770,24.65455928,84.704,84.627,25.5470517]
[1771603625970,10.6251,84.722,84.653,24.45191119]
[1771603626168,24.65455928,84.724,84.653,24.45191119]
[1771603626371,24.65455928,84.724,84.6,45.10610213]
[1771603626372,24.65455928,84.724,84.633,24.45191119]
[1771603626867,10.6275,84.703,84.644,10.6348]
[1771603627265,10.6275,84.703,84.67,0.09001507]
[1771603627867,25.94813274,84.703,84.67,0.09001507]
[1771603628068,35.49,84.746,84.68,9.61610213]
[1771603628268,10.6194,84.767,84.701,26.59802106]
[1771603628466,25.94813274,84.771,84.701,26.59802106]
[1771603628672,21.2296,84.804,84.66,9.61610213]
[1771603628673,25.94813274,84.769,84.678,26.59802106]
[1771603629066,0.07948954,84.744,84.681,26.59802106]
[1771603629671,25.8594985,84.756,84.681,26.59802106]
[1771603629976,10.6226,84.742,84.681,26.59802106]
[1771603630472,0.08295273,84.72,84.681,26.59802106]
[1771603631272,0.08295273,84.72,84.67,9.61610213]
[1771603631273,0.08295273,84.72,84.67,82.24760213]
[1771603631472,0.08295273,84.72,84.662,26.59802106]
[1771603631667,0.08295273,84.72,84.664,10.6322]
[1771603631974,10.6244,84.728,84.664,10.6322]
[1771603632377,0.08493986,84.7,84.65,9.61610213]
[1771603632579,25.44247093,84.7,84.643,26.59802106]
[1771603632970,25.44247093,84.7,84.585,21.2844]
[1771603632971,25.38356412,84.689,84.624,37.23532106]
[1771603633175,25.38356412,84.689,84.624,26.59802106]
[1771603633377,10.6311,84.675,84.611,10.6389]
[1771603633979,10.6322,84.665,84.604,26.59802106]
[1771603634280,0.07954355,84.651,84.611,26.59802106]
[1771603634767,25.40053496,84.693,84.611,26.59802106]
[1771603634967,10.6322,84.665,84.611,26.59802106]
[1771603635173,21.2543,84.706,84.611,26.59802106]
[1771603635174,0.08207341,84.639,84.611,26.59802106]
[1771603635378,25.32703152,84.675,84.611,26.59802106]
[1771603635580,25.32703152,84.675,84.63,0.08226577]
[1771603635874,10.6321,84.666,84.63,0.08226577]
[1771603636074,25.34316546,84.702,84.63,26.68028683]
[1771603636676,10.6296,84.686,84.631,10.6365]
[1771603636976,10.6296,84.686,84.62,9.61610213]
[1771603636977,25.34316546,84.702,84.658,0.08156484]
[1771603637969,25.24655898,84.729,84.658,0.08156484]
[1771603638480,10.6262,84.713,84.651,26.59802106]
[1771603638877,25.24655898,84.729,84.685,0.08147517]
[1771603639076,10.6271,84.706,84.651,26.59802106]
[1771603639277,25.24655898,84.729,84.651,26.59802106]
[1771603639483,0.07706755,84.715,84.651,26.59802106]
[1771603639779,25.08194975,84.714,84.64,9.56059016]
[1771603640583,0.08059444,84.685,84.631,26.59802106]
[1771603641086,25.08194975,84.691,84.631,26.59802106]
[1771603641478,0.08187026,84.666,84.631,26.59802106]
[1771603641683,0.08187026,84.666,84.62,9.56059016]
[1771603641882,0.08187026,84.666,84.612,26.59802106]
[1771603642077,0.08187026,84.666,84.613,37.23672106]
[1771603642284,0.08187026,84.666,84.6,9.56059016]
[1771603642285,0.08187026,84.666,84.614,26.59802106]
[1771603642484,10.6311,84.674,84.614,26.59802106]
[1771603642681,10.6301,84.682,84.614,26.59802106]
[1771603642877,25.08194975,84.691,84.614,26.59802106]
[1771603643080,24.64357007,84.689,84.636,0.08072023]
[1771603643285,10.6325,84.663,84.636,0.08072023]
[1771603643485,24.64357007,84.689,84.601,26.59802106]
[1771603643880,21.2587,84.688,84.601,26.59802106]
[1771603644081,24.65838869,84.669,84.601,26.59802106]
[1771603644586,24.65838869,84.669,84.58,36.15861122]
[1771603644884,0.08698221,84.643,84.604,10.6398]
[1771603645082,0.08698221,84.643,84.604,26.59802106]
[1771603645482,30.81389016,84.71,84.619,10.638]
[1771603645483,10.631,84.675,84.619,10.638]
[1771603645679,24.59434286,84.689,84.604,26.59802106]
[1771603645680,24.59434286,84.689,84.615,0.07577783]
[1771603646082,24.59381495,84.657,84.585,26.59802106]
[1771603646891,21.2593,84.686,84.566,10.6446]
[1771603646892,10.6374,84.624,84.566,10.6446]
[1771603647288,24.59773094,84.628,84.565,26.59802106]
[1771603647495,10.6375,84.624,84.565,26.59802106]
[1771603647991,24.61139089,84.639,84.565,26.59802106]
[1771603648382,0.08506216,84.603,84.565,26.59802106]
[1771603650596,0.08506216,84.603,84.546,26.59802106]
[1771603651099,24.81414876,84.603,84.527,26.59802106]
[1771603651293,10.6438,84.573,84.527,26.59802106]
[1771603651690,24.82779677,84.579,84.505,26.59802106]
[1771603651996,24.82779677,84.6,84.511,26.59802106]
[1771603652399,24.82779677,84.599,84.511,26.59802106]
[1771603652701,0.08490394,84.564,84.511,26.59802106]
[1771603653002,10.6417,84.59,84.547,0.07697595]
[1771603653201,24.56798965,84.62,84.547,26.67499701]
[1771603653400,24.56798965,84.62,84.49,9.56059016]
[1771603653401,10.639,84.611,84.551,26.59802106]
[1771603653891,24.56798965,84.62,84.551,26.59802106]
[1771603654088,10.6404,84.6,84.551,26.59802106]
[1771603654294,24.56798965,84.62,84.551,26.59802106]
[1771603654493,24.56798965,84.62,84.573,0.08881755]
[1771603654899,10.6404,84.601,84.573,0.08881755]
[1771603655401,10.6404,84.601,84.551,26.59802106]
[1771603655402,24.56798965,84.62,84.551,26.59802106]
[1771603655702,0.0830215,84.595,84.531,26.59802106]
[1771603656297,24.31021614,84.602,84.531,26.59802106]
[1771603656692,10.6401,84.603,84.537,26.59802106]
[1771603656897,24.32276629,84.621,84.537,26.59802106]
[1771603657094,24.32276629,84.621,84.55,9.56059016]
[1771603657300,24.32276629,84.621,84.562,0.07619678]
[1771603657799,24.32276629,84.621,84.55,9.56059016]
[1771603658198,10.6392,84.61,84.583,0.08384639]
[1771603658498,10.6392,84.61,84.541,10.6478]
[1771603658499,24.32276629,84.621,84.541,10.6478]
[1771603658706,0.08888465,84.594,84.542,25.86711501]
[1771603658906,0.08888465,84.594,84.545,10.6472]
[1771603659108,0.08888465,84.594,84.546,25.86711501]
[1771603659301,24.32276629,84.621,84.53,71.56059016]
[1771603659302,24.32276629,84.621,84.551,25.86711501]
[1771603659607,10.6364,84.632,84.574,25.86711501]
[1771603660195,10.6375,84.624,84.574,25.86711501]
[1771603660400,10.6375,84.624,84.595,0.08907583]
[1771603661901,37.92068087,84.633,84.522,35.49]
[1771603662107,0.08211565,84.618,84.56,9.56059016]
[1771603662603,37.92068087,84.633,84.569,10.6442]
[1771603662805,37.92068087,84.633,84.54,9.56059016]
[1771603663110,37.90855134,84.624,84.56,10.6453]
[1771603663305,0.07651736,84.595,84.54,9.56059016]
[1771603663807,37.90855134,84.624,84.56,9.56059016]
[1771603664600,37.90855134,84.624,84.584,0.08297793]
[1771603664801,10.6378,84.621,84.584,0.08297793]
[1771603665203,38.37126628,84.605,84.548,10.6468]
[1771603666005,21.2668,84.656,84.54,9.56059016]
[1771603666006,49.01002865,84.604,84.54,9.56059016]
[1771603666207,38.37012865,84.603,84.54,9.56059016]
[1771603666608,0.07507664,84.58,84.54,9.56059016]
[1771603667606,0.07507664,84.58,84.547,10.6469]
[1771603667798,0.07507664,84.58,84.54,9.56059016]
[1771603668203,10.6392,84.61,84.555,10.646]
[1771603668402,38.37308892,84.629,84.555,10.646]
[1771603668599,38.37308892,84.629,84.56,9.56059016]
[1771603669610,10.6371,84.627,84.586,0.07921066]
[1771603670506,10.6379,84.62,84.586,0.07921066]
[1771603670910,38.37308892,84.629,84.586,0.07921066]
[1771603671106,38.44024757,84.616,84.586,0.07921066]
[1771603671707,38.44024757,84.616,84.56,9.56059016]
[1771603672109,38.44024757,84.616,84.593,0.07674543]
[1771603672903,10.6371,84.626,84.593,0.07674543]
[1771603673512,10.6371,84.626,84.568,10.6444]
[1771603673713,38.44363172,84.649,84.54,9.56059016]
[1771603673714,38.44363172,84.649,84.58,9.56059016]
[1771603674017,38.44271541,84.688,84.6,9.56059016]
[1771603674212,38.44271541,84.688,84.607,10.6394]
[1771603675211,38.44271541,84.688,84.639,0.07979556]
[1771603675414,10.6332,84.657,84.639,0.07979556]
[1771603675607,35.49,84.722,84.639,0.07979556]
[1771603675608,39.2559137,84.709,84.639,0.07979556]
[1771603676116,39.2559137,84.709,84.62,9.56059016]
[1771603676310,39.25594122,84.685,84.62,9.56059016]
[1771603676917,10.6312,84.673,84.62,9.56059016]
[1771603677113,10.6312,84.673,84.644,0.08292557]
[1771603677709,10.6312,84.673,84.568,35.49]
[1771603677710,39.29941831,84.67,84.6,9.56059016]
[1771603677914,39.29953716,84.666,84.6,9.56059016]
[1771603678315,39.29953716,84.666,84.609,10.6392]
[1771603678919,39.29953716,84.666,84.6,71.56059016]
[1771603679216,0.08218176,84.646,84.6,71.56059016]
[1771603679418,0.08218176,84.646,84.6,9.56059016]
[1771603680210,0.08218176,84.646,84.6,20.20089016]
[1771603680416,0.08218176,84.646,84.6,9.56059016]
[1771603680817,0.08218176,84.646,84.608,10.6393]
[1771603681019,0.08218176,84.646,84.6,9.56059016]
[1771603681218,0.08218176,84.646,84.609,10.6392]
[1771603681420,0.08218176,84.646,84.6,9.56059016]
[1771603682416,0.08218176,84.646,84.6,71.56059016]
[1771603682622,10.631,84.675,84.616,10.6382]
[1771603682921,39.15269065,84.684,84.6,71.56059016]
[1771603682922,39.15269065,84.684,84.615,0.07605104]
[1771603683419,39.15269065,84.684,84.62,9.56059016]
[1771603683727,39.36678577,84.702,84.62,9.56059016]
[1771603683921,10.6279,84.7,84.638,10.6355]
[1771603684426,39.36678577,84.702,84.629,10.6366]
[1771603684824,39.36678577,84.702,84.661,0.0796264]
[1771603685216,10.6307,84.678,84.627,10.6369]
[1771603685417,0.07654906,84.674,84.62,9.56059016]
[1771603685814,0.07654906,84.674,84.6,62.0]
[1771603685815,39.53261909,84.723,84.64,9.56059016]
[1771603686821,39.42616845,84.704,84.646,10.6346]
[1771603687016,39.42616845,84.704,84.62,21.66482503]
[1771603688121,39.42616845,84.704,84.654,0.07855233]
[1771603688720,39.4266627,84.702,84.654,0.07855233]
[1771603689116,41.51927803,84.68,84.62,10.6377]
[1771603689726,41.48269805,84.677,84.611,10.6389]
[1771603690626,0.07550978,84.652,84.602,11.87443416]
[1771603690926,41.48269805,84.691,84.62,9.56059016]
[1771603691118,41.48269805,84.691,84.638,10.6356]
[1771603691527,41.35322652,84.688,84.62,9.56059016]
[1771603693029,41.35322652,84.688,84.633,10.6362]
[1771603694126,41.35322652,84.688,84.652,0.07489904]
[1771603695329,41.33112189,84.709,84.652,0.07489904]
[1771603695530,315.55492453,84.784,84.652,0.07489904]
[1771603695531,41.33112189,84.729,84.652,0.07489904]
[1771603695727,41.33112189,84.759,84.67,9.56059016]
[1771603695927,41.33112189,84.759,84.698,10.628]
[1771603696130,41.33112189,84.759,84.69,9.56059016]
[1771603696426,41.33341908,84.799,84.69,9.56059016]
[1771603696632,41.33341908,84.774,84.7,10.6278]
[1771603696832,41.33341908,84.774,84.69,9.56059016]
[1771603697032,41.33341908,84.774,84.67,9.56059016]
[1771603697240,40.96414353,84.759,84.67,9.56059016]
[1771603697441,9.56059016,84.76,84.635,21.2719]
[1771603697442,40.96414353,84.733,84.672,10.6313]
[1771603698039,0.07585044,84.723,84.67,9.56059016]
[1771603698538,40.96414353,84.733,84.67,9.56059016]
[1771603698736,10.6215,84.751,84.67,9.56059016]
[1771603698933,41.39640539,84.75,84.68,62.0]
[1771603699337,41.44036163,84.745,84.65,9.56059016]
[1771603699539,41.44036163,84.739,84.65,9.56059016]
[1771603700042,41.44036163,84.739,84.65,9.55710373]
[1771603700543,41.44036163,84.739,84.686,0.07488495]
[1771603700845,41.44036163,84.739,84.63,35.49]
[1771603700846,0.08835471,84.703,84.63,9.55710373]
[1771603701036,41.00636166,84.703,84.63,9.55710373]
[1771603701235,41.00636166,84.703,84.6,9.55710373]
[1771603701236,40.91800695,84.682,84.622,10.6376]
[1771603701440,40.91800695,84.682,84.61,9.55710373]
[1771603701644,165.2574,84.734,84.61,9.55710373]
[1771603701645,10.93966509,84.77,84.659,165.401]
[1771603701841,40.91800695,84.769,84.71,9.55710373]
[1771603702041,40.91971743,84.809,84.73,9.55710373]
[1771603702446,40.91971743,84.786,84.73,9.55710373]
[1771603702647,0.07594263,84.778,84.73,9.55710373]
[1771603703243,0.07594263,84.778,84.732,10.6238]
[1771603703848,0.07594263,84.778,84.73,9.55710373]
[1771603704148,41.50401559,84.778,84.7,9.55710373]
[1771603704744,41.42807296,84.778,84.7,9.55710373]
[1771603705253,41.40977673,84.747,84.7,9.55710373]
[1771603705551,41.40977673,84.747,84.614,165.4896]
[1771603705552,41.33466072,84.738,84.681,10.6301]
[1771603706243,41.33466072,84.738,84.689,10.6291]
[1771603706447,165.0548,84.838,84.632,165.4546]
[1771603706448,41.33666727,84.759,84.69,9.55710373]
[1771603706646,41.33666727,84.759,84.664,21.2645]
[1771603706647,41.33666727,84.759,84.71,9.55710373]
[1771603706948,9.55710373,84.8,84.71,9.55710373]
[1771603706949,41.11137041,84.771,84.71,9.55710373]
[1771603707140,41.11137041,84.771,84.68,9.55710373]
[1771603707654,41.11137041,84.767,84.7,9.55710373]
[1771603707846,41.11137041,84.767,84.717,0.07604833]
[1771603708447,41.11137041,84.767,84.66,9.55710373]
[1771603708448,41.11137041,84.767,84.68,9.55710373]
[1771603708744,41.07504428,84.749,84.66,9.55710373]
[1771603708942,10.623,84.739,84.673,10.6311]
[1771603709149,40.95770419,84.738,84.66,9.55710373]
[1771603710049,0.08159318,84.707,84.66,9.55710373]
[1771603710245,0.08159318,84.707,84.671,10.6313]
[1771603710452,0.08159318,84.707,84.66,9.55710373]
[1771603710651,40.95770419,84.738,84.68,9.55710373]
[1771603710852,40.95770419,84.738,84.681,0.08957672]
[1771603711251,40.95770419,84.738,84.68,9.55710373]
[1771603711453,21.2283,84.81,84.68,9.55710373]
[1771603711454,41.03340919,84.768,84.68,9.55710373]
[1771603711655,41.03340919,84.768,84.7,9.55710373]
[1771603712249,41.03340919,84.768,84.72,10.6253]
[1771603713153,41.03340919,84.768,84.736,0.08739046]
[1771603714153,41.03340919,84.768,84.7,9.55710373]
[1771603714355,0.08017528,84.76,84.7,9.55710373]
[1771603714747,40.97784543,84.76,84.703,10.6274]
[1771603714956,40.89767015,84.76,84.703,10.6274]
[1771603716056,0.08758373,84.74,84.703,10.6274]
[1771603716655,0.08758373,84.74,84.712,10.6262]
[1771603716855,0.08758373,84.74,84.7,9.55710373]
[1771603717156,0.08758373,84.74,84.708,10.6267]
[1771603717352,0.08758373,84.74,84.68,71.55710373]
[1771603717757,0.08758373,84.74,84.68,9.55710373]
[1771603717959,40.89767015,84.76,84.68,9.55710373]
[1771603718350,0.07642367,84.718,84.691,10.6289]
[1771603718555,0.07642367,84.718,84.66,9.55710373]
[1771603719060,40.68453509,84.739,84.673,10.6311]
[1771603719247,40.72309132,84.769,84.68,9.55710373]
[1771603719447,40.72309132,84.769,84.681,0.08334711]
[1771603719652,40.72309132,84.754,84.681,0.08334711]
[1771603719852,40.72309132,84.754,84.68,9.55710373]
[1771603720855,40.72309132,84.754,84.709,0.09063338]
[1771603721058,40.48444311,84.789,84.709,0.09063338]
[1771603721655,9.55710373,84.79,84.697,10.6281]
[1771603721656,40.48444311,84.763,84.697,10.6281]
[1771603722655,40.48444311,84.763,84.68,9.55710373]
[1771603722656,40.48444311,84.763,84.704,10.6272]
[1771603722854,40.33255228,84.799,84.7,9.55710373]
[1771603723255,40.33255228,84.799,84.681,35.49]
[1771603723256,40.33255228,84.792,84.72,9.55710373]
[1771603723561,0.07806423,84.758,84.72,9.55710373]
[1771603723762,40.33255228,84.792,84.739,10.6228]
[1771603723955,40.33255228,84.792,84.748,0.07685437]
[1771603725163,40.33255228,84.792,84.753,10.6211]
[1771603725361,40.16744199,84.812,84.753,10.6211]
[1771603725764,40.16814054,84.83,84.753,12.08809646]
[1771603725965,40.16814054,84.83,84.77,9.55710373]
[1771603726363,40.16814054,84.859,84.783,0.08869363]
[1771603726863,10.609,84.851,84.77,9.55710373]
[1771603727066,40.41509607,84.85,84.77,9.55710373]
[1771603727262,40.41509607,84.85,84.813,0.08386114]
[1771603729561,40.17361658,84.912,84.83,9.55710373]
[1771603729761,40.17361658,84.912,84.813,0.08386114]
[1771603729762,40.17361658,84.912,84.85,9.55710373]
[1771603729962,40.17427905,84.91,84.85,9.55710373]
[1771603730266,40.17427905,84.929,84.87,9.55710373]
[1771603730458,40.17427905,84.929,84.872,0.08462086]
[1771603730865,35.35,84.98,84.78,23.7868212]
[1771603730866,39.76091631,84.899,84.82,9.55710373]
[1771603731664,39.76091631,84.898,84.82,9.55710373]
[1771603732066,39.76091631,84.898,84.82,71.55710373]
[1771603732266,35.03831266,84.896,84.82,71.55710373]
[1771603732465,35.03831266,84.896,84.81,10.614]
[1771603732664,35.03831266,84.896,84.822,10.6124]
[1771603732868,35.03831266,84.896,84.82,9.55710373]
[1771603733165,10.608,84.859,84.78,9.55710373]
[1771603733567,9.55710373,84.85,84.76,9.55710373]
[1771603734167,0.08341509,84.828,84.76,9.55710373]
[1771603734569,38.34364544,84.828,84.755,10.6209]
[1771603734771,38.26023035,84.828,84.755,10.6209]
[1771603734969,38.16270473,84.822,84.742,10.6225]
[1771603735271,0.087087,84.8,84.74,9.55710373]
[1771603735469,0.087087,84.8,84.74,71.55710373]
[1771603735668,0.087087,84.8,84.762,10.62]
[1771603735871,38.16270473,84.822,84.76,9.55710373]
[1771603736174,0.08319314,84.789,84.75,9.55710373]
[1771603736766,0.08319314,84.789,84.74,62.0]
[1771603737068,0.08319314,84.789,84.73,9.55710373]
[1771603737670,38.09179183,84.803,84.73,9.55710373]
[1771603738068,0.07901954,84.768,84.73,9.55710373]
[1771603739077,0.07901954,84.768,84.73,21.49977267]
[1771603739572,0.07901954,84.768,84.743,10.6223]
[1771603739978,37.8771859,84.839,84.75,9.55710373]
[1771603740476,37.8771859,84.833,84.765,10.6196]
[1771603740877,37.89492016,84.831,84.754,10.6209]
[1771603741071,37.89492016,84.831,84.75,9.55710373]
[1771603741380,37.89492016,84.869,84.791,0.07661516]
[1771603741974,37.89564454,84.854,84.79,9.55710373]
[1771603742176,37.89564454,84.849,84.77,9.55710373]
[1771603742576,37.89564454,84.829,84.74,62.0]
[1771603742777,9.63673402,84.83,84.78,9.55710373]
[1771603742778,0.07963029,84.83,84.78,9.55710373]
[1771603743177,37.96641736,84.855,84.8,9.55710373]
[1771603743573,37.96641736,84.875,84.8,9.55710373]
[1771603743882,0.08147326,84.836,84.8,9.55710373]
[1771603744078,37.96641736,84.875,84.82,9.55710373]
[1771603744673,37.96641736,84.875,84.8,9.55710373]
[1771603745682,38.10888859,84.865,84.78,9.55710373]
[1771603746380,38.10888859,84.865,84.814,0.0783122]
[1771603746580,38.10888859,84.865,84.82,9.55710373]
[1771603746782,38.10968741,84.899,84.814,0.0783122]
[1771603746976,9.55710373,84.9,84.8,9.55710373]
[1771603746977,38.36621804,84.869,84.801,10.6151]
[1771603747277,38.36621804,84.869,84.848,0.07942915]
[1771603747477,38.36621804,84.869,84.8,9.55710373]
[1771603747776,315.1996,84.925,84.82,9.55710373]
[1771603747777,38.32650347,84.899,84.82,9.55710373]
[1771603747985,38.32885841,84.897,84.82,9.55710373]
[1771603748581,38.32885841,84.896,84.826,10.612]
[1771603748776,38.32885841,84.896,84.82,9.55710373]
[1771603748977,10.6047,84.885,84.82,9.55710373]
[1771603749171,38.32885841,84.896,84.82,9.55710373]
[1771603749575,0.08961356,84.861,84.82,9.55710373]
[1771603750580,38.52749444,84.861,84.8,9.55710373]
[1771603751082,38.43788088,84.861,84.792,10.6162]
[1771603751279,38.43788088,84.861,84.78,9.55710373]
[1771603751478,38.74718296,84.838,84.76,71.55710373]
[1771603751874,0.08694667,84.839,84.76,71.55710373]
[1771603751875,38.7483277,84.827,84.76,71.55710373]
[1771603752276,38.7483277,84.827,84.77,10.6189]
[1771603752477,0.07650108,84.802,84.77,10.6189]
[1771603752683,0.07650108,84.802,84.76,9.55710373]
[1771603753087,38.68265968,84.847,84.76,9.55710373]
[1771603753276,38.68265968,84.847,84.78,9.55710373]
[1771603753979,38.68265968,84.847,84.798,10.6155]
[1771603754281,38.68265968,84.847,84.736,165.2502]
[1771603754282,38.68265968,84.847,84.76,9.55710373]
[1771603754480,38.68265968,84.847,84.739,35.35]
[1771603754685,38.68265968,84.847,84.78,9.55710373]